fUST/lending_fUST_20260407
["ID","MTS","AMOUNT","RATE_DAILY","PERIOD"]
[419902326,1775491296902,1000.0,0.00032876,120]
[419902327,1775491389530,619.73,0.00032877,120]
[419902328,1775491410831,200.0,0.0003242,120]
[419902329,1775491650789,200.0,0.0003087,120]
[419902330,1775491831191,200.0,0.00030096,120]
[419902339,1775491832634,-682.04085386,0.00013562,2]
[419902340,1775491832646,-320.24175355,0.00013562,2]
[419902341,1775491832658,-3997.71739259,0.00013562,2]
[419902342,1775491832668,-613.0,0.00013562,2]
[419902343,1775491832678,-1000.0,0.00013699,2]
[419902344,1775491832687,-1524.69181513,0.0002,30]
[419902345,1775491832702,-2298.27417321,0.0002,30]
[419902346,1775491832712,-161.40624103,0.0002,2]
[419902347,1775491832721,-1411.461812,0.00022,2]
[419902348,1775491832731,-162.0,0.00022,2]
[419902349,1775491832740,-168.0,0.00022,2]
[419902350,1775491832750,-933.5978955,0.00022,2]
[419902398,1775491838848,-281.33333333,0.00013599,2]
[419902399,1775491838858,-27978.31298435,0.00022,2]
[419902400,1775491838870,-184.0,0.00022101,2]
[419902401,1775491838882,-168.0,0.00023,2]
[419902402,1775491838893,-270.83333333,0.00023,2]
[419902403,1775491838903,-735.5953657,0.00023134,2]
[419902404,1775491838913,-4633.38713234,0.00023386,30]
[419902405,1775491838923,-300.0,0.00023596,10]
[419902406,1775491838933,-300.0,0.00023596,10]
[419902407,1775491838943,-300.0,0.00023596,10]
[419902408,1775491838953,-300.0,0.00023596,10]
[419902409,1775491838963,-300.0,0.00023596,10]
[419902410,1775491838974,-300.0,0.00023596,10]
[419902411,1775491838985,-300.0,0.00023596,10]
[419902412,1775491838995,-300.0,0.00023596,10]
[419902413,1775491839006,-300.0,0.00023596,10]
[419902414,1775491839017,-300.0,0.00023596,10]
[419902415,1775491839027,-300.0,0.00023596,10]
[419902416,1775491839038,-300.0,0.00023596,10]
[419902417,1775491839048,-300.0,0.00023596,10]
[419902418,1775491839059,-300.0,0.00023596,10]
[419902419,1775491839068,-300.0,0.00023596,10]
[419902420,1775491839078,-168.0,0.00024,2]
[419902421,1775491839088,-600.0,0.00024067,10]
[419902422,1775491839099,-5000.0,0.00024171,2]
[419902423,1775491839108,-500.0,0.00024499,2]
[419902424,1775491839118,-500.79604121,0.00024499,2]
[419902425,1775491839128,-500.0,0.00024499,2]
[419902426,1775491839140,-13116.54037929,0.000245,3]
[419902427,1775491839150,-270.83333333,0.000245,3]
[419902428,1775491839160,-930.61,0.00024531,10]
[419902429,1775491839171,-13281.86347874,0.00024541,2]
[419902430,1775491839183,-27014.09091924,0.00024541,2]
[419902431,1775491839193,-4682.25874051,0.00024558,2]
[419902432,1775491839202,-162.380719,0.00024626,2]
[419902433,1775491839212,-500.0,0.00024626,2]
[419902434,1775491839221,-2150.738,0.00024626,2]
[419902435,1775491839231,-537.6845,0.00024626,2]
[419902436,1775491839241,-1116.73,0.00024631,10]
[419902437,1775491839251,-431.5288826,0.00024639,2]
[419902438,1775491839261,-500.0,0.00024639,2]
[419902439,1775491839271,-500.0,0.00024639,2]
[419902440,1775491839280,-500.0,0.00024639,2]
[419902441,1775491839290,-500.0,0.00024639,2]
[419902442,1775491839300,-500.0,0.00024639,2]
[419902443,1775491839309,-500.0,0.00024639,2]
[419902444,1775491839319,-500.0,0.00024639,2]
[419902445,1775491839329,-320.76714152,0.00024639,2]
[419902446,1775491839339,-500.0,0.00024639,2]
[419902447,1775491839349,-213.22918245,0.00024639,2]
[419902448,1775491839358,-500.0,0.00024639,2]
[419902449,1775491839368,-500.0,0.00024639,2]
[419902450,1775491839379,-500.0,0.00024639,2]
[419902451,1775491839389,-500.0,0.0002464,2]
[419902452,1775491839399,-160.42306948,0.0002464,2]
[419902453,1775491839409,-200.0,0.0002464,2]
[419902454,1775491839419,-308.48233273,0.0002464,2]
[419902455,1775491839429,-540879.79831197,0.00024641,2]
[419902470,1775491841813,-371.71976407,0.00024639,2]
[419902471,1775491841831,-3.33373387,0.00024639,2]
[419902472,1775491841842,-5176.76216795,0.00024641,2]
[419902494,1775491846881,-20094.79777726,0.00024641,2]
[419902495,1775491846935,-15846.82761646,0.00024641,2]
[419902496,1775491846948,-4854.24008988,0.00024641,2]
[419902497,1775491847496,-1365.08688612,0.00024641,2]
[419902498,1775491890806,1000.0,0.00032876,120]
[419902499,1775491890994,200.0,0.00026536,120]
[419902500,1775491950986,200.0,0.00026672,120]
[419902502,1775492010796,200.0,0.00031129,120]
[419902503,1775492070922,200.0,0.00030829,120]
[419902504,1775492130782,200.0,0.00032683,120]
[419902505,1775492137349,1038.34,0.000328,120]
[419902506,1775492216126,2980.0,0.00032602,120]
[419902507,1775492216348,2980.0,0.0003263,120]
[419902508,1775492216576,2980.0,0.00032657,120]
[419902509,1775492216826,2980.0,0.00032684,120]
[419902510,1775492217248,2980.0,0.00032712,120]
[419902511,1775492217477,2980.0,0.00032739,120]
[419902512,1775492217709,2980.0,0.00032767,120]
[419902513,1775492217960,2980.0,0.00032794,120]
[419902514,1775492218202,2980.0,0.00032821,120]
[419902515,1775492218433,2980.0,0.00032849,120]
[419902516,1775492218657,2980.0,0.00032876,120]
[419902518,1775492305462,5230.70239212,0.00032,120]
[419902519,1775492358454,1666.6,0.0003287,120]
[419902520,1775492436006,2980.0,0.00032602,120]
[419902521,1775492436230,2980.0,0.0003263,120]
[419902522,1775492436452,2980.0,0.00032657,120]
[419902523,1775492436668,2980.0,0.00032684,120]
[419902524,1775492436886,2980.0,0.00032712,120]
[419902525,1775492437138,2980.0,0.00032739,120]
[419902526,1775492437359,2980.0,0.00032767,120]
[419902527,1775492437621,2980.0,0.00032794,120]
[419902528,1775492437870,2980.0,0.00032821,120]
[419902529,1775492438097,2980.0,0.00032849,120]
[419902530,1775492438318,2980.0,0.00032876,120]
[419902531,1775492496443,1000.0,0.00032876,120]
[419902532,1775492611701,200.0,0.00032726,120]
[419902533,1775492698965,2980.0,0.00032602,120]
[419902534,1775492699572,2980.0,0.0003263,120]
[419902535,1775492699837,1298.3948,0.00032657,120]
[419902536,1775492730770,200.0,0.00031943,120]
[419902537,1775492790809,200.0,0.00031988,120]
[419902548,1775492974917,1409.0,0.00032877,120]
[419902549,1775493026805,1000.0,0.00031,120]
[419902576,1775493038777,-1000.0,0.00013699,2]
[419902577,1775493038789,-300.0,0.00013832,2]
[419902578,1775493038800,-300.0,0.00013832,2]
[419902579,1775493038811,-300.0,0.00013832,2]
[419902580,1775493038824,-300.0,0.00013832,2]
[419902581,1775493038835,-300.0,0.00013832,2]
[419902582,1775493038848,-300.0,0.00013832,2]
[419902583,1775493038859,-300.0,0.00013832,2]
[419902584,1775493038869,-300.0,0.00013832,2]
[419902585,1775493038879,-300.0,0.00013832,2]
[419902586,1775493038890,-300.0,0.00013832,2]
[419902587,1775493038901,-300.0,0.00013832,2]
[419902588,1775493038913,-300.0,0.00013832,2]
[419902589,1775493038925,-300.0,0.00013832,2]
[419902590,1775493038937,-300.0,0.00013832,2]
[419902591,1775493038949,-300.0,0.00013832,2]
[419902592,1775493038961,-500.0,0.000139,2]
[419902593,1775493038972,-600.0,0.00014108,2]
[419902594,1775493038992,-720.0,0.00015518,2]
[419902595,1775493039004,-864.0,0.0001707,2]
[419902596,1775493039014,-1000.0,0.00018777,2]
[419902597,1775493039025,-179.9494428,0.00020169,2]
[419902598,1775493039037,-1000.0,0.00020655,2]
[419902599,1775493039059,-244.0,0.00020655,2]
[419902600,1775493039072,-151.0,0.00022,2]
[419902601,1775493039083,-159.0,0.00022,2]
[419902602,1775493039093,-164.0,0.00022,2]
[419902603,1775493039110,-1298.16775212,0.00022238,2]
[419902604,1775493039120,-1000.0,0.0002272,10]
[419902605,1775493039131,-492.0,0.0002272,10]
[419902606,1775493039144,-155.0,0.00023,2]
[419902607,1775493039155,-164.0,0.00023,2]
[419902608,1775493039166,-185.0,0.00023127,2]
[419902609,1775493039177,-325.1311657,0.00023192,2]
[419902610,1775493039187,-1370.90381448,0.00023408,2]
[419902611,1775493039197,-8500.0,0.000235,8]
[419902612,1775493039208,-27983.2,0.000238,2]
[419902613,1775493039219,-270.83333333,0.00023867,2]
[419902614,1775493039230,-1523.29283346,0.00023878,10]
[419902615,1775493039240,-1654.42133798,0.0002389,2]
[419902616,1775493039252,-775.5,0.0002389,10]
[419902617,1775493039270,-646.25,0.0002389,10]
[419902619,1775493039289,-262.53744856,0.00023899,2]
[419902621,1775493039299,-302.07021782,0.00023899,2]
[419902622,1775493039311,-215213.05349971,0.000239,2]
[419902632,1775493041156,-425.98048671,0.000239,2]
[419902651,1775493049253,-165.54519583,0.00022,2]
[419902652,1775493049262,-500.0,0.00023899,2]
[419902653,1775493049272,-500.0,0.00023899,2]
[419902654,1775493049280,-274.53699907,0.00023899,2]
[419902655,1775493049290,-6390.60719226,0.000239,2]
[419902658,1775493069874,500.240115,0.00032876,120]
[419902659,1775493081458,-756.53207246,0.00013699,2]
[419902660,1775493081471,-243.46792754,0.00013699,2]
[419902661,1775493086722,1000.0,0.00032876,120]
[419902662,1775493686452,1000.0,0.00032876,120]
[419902663,1775493757899,1038.34,0.000328,120]
[419902664,1775493904766,1669.6272316,0.00032877,120]
[419902713,1775494231975,-1000.0,0.00013699,2]
[419902714,1775494231983,-587.44187843,0.00013699,2]
[419902746,1775494240386,-27.55812157,0.00013699,2]
[419902748,1775494240397,-583.83333333,0.00020069,2]
[419902828,1775494244194,-322.86179086,0.00020069,2]
[419902829,1775494244204,-153.0,0.00022,2]
[419902830,1775494244214,-174.0,0.00022,2]
[419902831,1775494244223,-153.0,0.00022,2]
[419902832,1775494244233,-417.082319,0.00022572,2]
[419902833,1775494244242,-163.0,0.00023,2]
[419902834,1775494244252,-174.0,0.00023,2]
[419902835,1775494244262,-9460.0139,0.00023,2]
[419902836,1775494244272,-156.54519583,0.00023,2]
[419902837,1775494244282,-375.96220239,0.00023407,2]
[419902838,1775494244291,-1502.34496075,0.00023407,2]
[419902839,1775494244301,-270.83333333,0.00023491,2]
[419902840,1775494244310,-154.4258518,0.00023562,2]
[419902841,1775494244319,-1447.61867075,0.00023599,2]
[419902842,1775494244329,-1382.95214687,0.000236,18]
[419902843,1775494244338,-3125.47573786,0.000236,18]
[419902844,1775494244348,-5000.980006,0.00023688,4]
[419902845,1775494244357,-373.99,0.0002369,10]
[419902846,1775494244366,-234.89691903,0.00023699,2]
[419902847,1775494244375,-500.0,0.00023699,2]
[419902848,1775494244385,-211.44915247,0.00023699,2]
[419902849,1775494244395,-500.0,0.00023699,2]
[419902851,1775494244403,-274.53699907,0.00023699,2]
[419902852,1775494244413,-500.0,0.00023699,2]
[419902854,1775494244422,-500.0,0.00023699,2]
[419902855,1775494244431,-500.0,0.00023699,2]
[419902857,1775494244440,-500.0,0.00023699,2]
[419902859,1775494244449,-500.0,0.00023699,2]
[419902860,1775494244458,-500.0,0.00023699,2]
[419902862,1775494244467,-234.03855603,0.00023699,2]
[419902863,1775494244476,-500.0,0.00023699,2]
[419902865,1775494244485,-500.0,0.00023699,2]
[419902866,1775494244495,-500.0,0.00023699,2]
[419902868,1775494244504,-500.0,0.00023699,2]
[419902870,1775494244514,-113907.82945076,0.000237,2]
[419902872,1775494244526,-23629.57245816,0.000237,2]
[419902874,1775494244536,-27995.84460526,0.000237,2]
[419902895,1775494246093,-761.61884548,0.000237,2]
[419902896,1775494246105,-10121.03344516,0.000237,2]
[419902897,1775494246201,-10829.93333307,0.000237,2]
[419902898,1775494280892,1000.0,0.00032876,120]
[419902899,1775494526853,-151.0,0.00013233,14]
[419902900,1775494528804,-151.0,0.00013233,14]
[419902902,1775494881441,-58.86751561,0.00013233,14]
[419902903,1775494881473,-238.4812646,0.00013292,2]
[419902904,1775494881509,-609.0,0.00013292,2]
[419902905,1775494881602,-3845.77036712,0.00013426,2]
[419902906,1775494903134,1000.0,0.00032876,120]
[419902907,1775494910690,-906.34878021,0.00013292,2]
[419902909,1775495120117,310.2,0.00032876,120]
[419902913,1775495169832,1675.76,0.000327,120]
[419902914,1775495172631,1990.0,0.00032602,120]
[419902915,1775495172909,1990.0,0.00032657,120]
[419902916,1775495173156,1990.0,0.00032712,120]
[419902917,1775495173410,1990.0,0.00032767,120]
[419902918,1775495173654,1990.0,0.00032821,120]
[419902919,1775495173892,1990.0,0.00032876,120]
[419902959,1775495388352,1407.84297751,0.0001,2]
[419902960,1775495389360,2906.07515247,0.0001,2]
[419902961,1775495396348,291.50616055,0.0001,2]
[419902962,1775495405682,195671.11155163,7.6e-05,2]
[419902963,1775495415181,200.0,8e-05,7]
[419902964,1775495416225,1990.0,0.00032602,120]
[419902965,1775495416455,1990.0,0.00032657,120]
[419902966,1775495416673,1990.0,0.00032712,120]
[419902967,1775495416907,1990.0,0.00032767,120]
[419902968,1775495417810,1990.0,0.00032821,120]
[419902969,1775495417847,1990.0,0.00032876,120]
[419902988,1775495433290,-275.752,0.00013599,2]
[419902989,1775495433299,-614.0,0.00013599,2]
[419902990,1775495433308,-152.81661933,0.00013699,2]
[419903016,1775495438475,-847.18338067,0.00013699,2]
[419903018,1775495438485,-168.8,0.00013871,2]
[419903020,1775495438494,-300.0,0.00013971,2]
[419903022,1775495438504,-300.0,0.00013972,2]
[419903024,1775495438514,-300.0,0.00013972,2]
[419903026,1775495438523,-300.0,0.00013972,2]
[419903028,1775495438533,-300.0,0.00013972,2]
[419903031,1775495438543,-300.0,0.00013972,2]
[419903033,1775495438552,-300.0,0.00013972,2]
[419903035,1775495438562,-300.0,0.00013972,2]
[419903037,1775495438571,-300.0,0.00013972,2]
[419903039,1775495438581,-300.0,0.00013972,2]
[419903041,1775495438590,-300.0,0.00013972,2]
[419903043,1775495438600,-300.0,0.00013972,2]
[419903045,1775495438609,-300.0,0.00013972,2]
[419903047,1775495438619,-300.0,0.00013972,2]
[419903049,1775495438628,-300.0,0.00013972,2]
[419903051,1775495438637,-300.0,0.00013972,2]
[419903053,1775495438646,-600.35865721,0.000149,2]
[419903055,1775495438654,-1028.1881284,0.00015,2]
[419903057,1775495438664,-3055.849822,0.00015,2]
[419903059,1775495438673,-152.30543204,0.00015,2]
[419903060,1775495438682,-854.08784769,0.000158,2]
[419903062,1775495438691,-217.90870137,0.00016,2]
[419903064,1775495438700,-2158.92661647,0.000176,2]
[419903066,1775495438710,-509.14433348,0.00018,2]
[419903068,1775495438718,-2298.27417321,0.0002,30]
[419903070,1775495438727,-161.40624103,0.0002,2]
[419903073,1775495438738,-200.0,0.000205,2]
[419903075,1775495438747,-247.495881,0.000215,2]
[419903077,1775495438757,-179.0,0.00022,2]
[419903079,1775495438766,-1000.0,0.00022222,30]
[419903081,1775495438776,-335.45244522,0.00022237,2]
[419903083,1775495438785,-200.0,0.00022574,7]
[419903085,1775495438794,-200.0,0.00022574,7]
[419903087,1775495438804,-200.0,0.00022574,7]
[419903089,1775495438813,-200.0,0.00022574,7]
[419903091,1775495438822,-200.0,0.00022574,7]
[419903093,1775495438831,-200.0,0.00022574,7]
[419903095,1775495438840,-200.0,0.00022574,7]
[419903097,1775495438850,-200.0,0.00022574,7]
[419903098,1775495438859,-200.0,0.00022574,7]
[419903100,1775495438868,-200.0,0.00022574,7]
[419903102,1775495438878,-200.0,0.00022574,7]
[419903105,1775495438887,-200.0,0.00022574,7]
[419903107,1775495438898,-200.0,0.00022574,7]
[419903109,1775495438907,-200.0,0.00022574,7]
[419903111,1775495438916,-179.52213445,0.00022721,2]
[419903113,1775495438926,-179.52213445,0.00022994,7]
[419903115,1775495438935,-179.0,0.00023,2]
[419903117,1775495438944,-340.4536997,0.00023,2]
[419903119,1775495438953,-600.0,0.00023024,10]
[419903121,1775495438963,-270.83333333,0.00023095,2]
[419903123,1775495438972,-179.52213445,0.00023268,7]
[419903125,1775495438981,-1370.78421067,0.00023305,2]
[419903127,1775495438990,-594.91315584,0.00023373,2]
[419903129,1775495438999,-184.0,0.00023388,2]
[419903131,1775495439008,-200.0,0.00023405,2]
[419903133,1775495439018,-200.0,0.00023406,2]
[419903135,1775495439027,-500.0,0.00023473,2]
[419903137,1775495439036,-250.0,0.00023499,2]
[419903139,1775495439045,-162.380719,0.00023499,2]
[419903140,1775495439055,-151.0,0.00023499,2]
[419903143,1775495439064,-445.202766,0.00023499,2]
[419903145,1775495439074,-162.380719,0.00023499,2]
[419903147,1775495439083,-537.6845,0.00023499,2]
[419903149,1775495439092,-2150.738,0.00023499,2]
[419903151,1775495439102,-207.83810638,0.00023499,2]
[419903153,1775495439111,-200.0,0.00023499,2]
[419903155,1775495439121,-232.548,0.00023499,4]
[419903157,1775495439130,-179.52213445,0.00023541,14]
[419903159,1775495439140,-642.13538923,0.000236,18]
[419903161,1775495439149,-1405.07292275,0.000236,18]
[419903163,1775495439159,-611.85176373,0.000236,18]
[419903165,1775495439168,-588.58,0.000236,2]
[419903167,1775495439178,-588.58,0.000236,2]
[419903169,1775495439187,-588.58,0.000236,2]
[419903171,1775495439197,-588.58,0.000236,2]
[419903173,1775495439206,-588.58,0.000236,2]
[419903175,1775495439216,-588.58,0.000236,2]
[419903177,1775495439225,-588.58,0.000236,2]
[419903179,1775495439235,-1004.34,0.000236,2]
[419903181,1775495439245,-476.21,0.0002369,10]
[419903183,1775495439254,-2258.23319099,0.000237,2]
[419903250,1775495439869,-1806.8285671,0.000237,2]
[419903252,1775495439881,-30263.93805091,0.000237,2]
[419903254,1775495439892,-2000.38884425,0.000237,2]
[419903390,1775495441120,-23242.17180994,0.000237,2]
[419903602,1775495443460,-1357.39668019,0.000237,2]
[419903605,1775495443473,-8008.41106366,0.000237,2]
[419903607,1775495443485,-7807.39126634,0.000237,2]
[419903871,1775495446539,-46853.49120689,0.000237,2]
[419903873,1775495446549,-1000.0,0.000238,2]
[419903875,1775495446558,-12237.05372615,0.000238,2]
[419906536,1775495502451,1000.0,0.00032876,120]
[419906537,1775495565736,2624.0,0.00032876,120]
[419906538,1775495601882,1038.34,0.000328,120]
[419906539,1775495602511,1038.34,0.00032829,120]
[419906540,1775495605315,1038.34,0.00032857,120]
[419906541,1775495656500,1990.0,0.00032602,120]
[419906542,1775495656728,1990.0,0.00032657,120]
[419906543,1775495656964,1990.0,0.00032712,120]
[419906544,1775495657199,1990.0,0.00032767,120]
[419906545,1775495657458,1990.0,0.00032821,120]
[419906546,1775495657717,1990.0,0.00032876,120]
[419906547,1775495928358,1990.0,0.00032602,120]
[419906548,1775495928577,1990.0,0.00032657,120]
[419906549,1775495928809,1990.0,0.00032712,120]
[419906550,1775495929039,1990.0,0.00032767,120]
[419906551,1775495929259,1990.0,0.00032821,120]
[419906552,1775495929483,1990.0,0.00032876,120]
[419906553,1775496088379,1000.0,0.00032876,120]
[419906554,1775496261808,1708.29,0.000327,120]
[419906580,1775496394901,1990.0,0.00032602,120]
[419906581,1775496395149,1990.0,0.00032657,120]
[419906582,1775496397265,1990.0,0.00032712,120]
[419906583,1775496397504,367.63386341,0.00032767,120]
[419906590,1775496504658,1038.34,0.000328,120]
[419906591,1775496505634,1038.34,0.00032836,120]
[419906592,1775496506612,1038.34,0.00032873,120]
[419906677,1775496632843,-346.66554025,0.00013699,2]
[419906774,1775496641695,-653.33445975,0.00013699,2]
[419906776,1775496641704,-146.66554025,0.00014695,2]
[419906778,1775496641718,-20.00112641,0.00014695,2]
[419906780,1775496641727,-151.0,0.00014795,2]
[419906782,1775496641737,-139.35296747,0.00014795,2]
[419906994,1775496643773,-11.64703253,0.00014795,2]
[419906996,1775496643783,-300.0,0.00019135,2]
[419906998,1775496643793,-181.44833253,0.00019135,2]
[419907000,1775496643805,-118.55166747,0.00019135,2]
[419907002,1775496643816,-300.0,0.00019135,2]
[419907004,1775496643826,-300.0,0.00019135,2]
[419907005,1775496643835,-300.0,0.00019135,2]
[419907007,1775496643845,-300.0,0.00019135,2]
[419907009,1775496643855,-300.0,0.00019135,2]
[419907011,1775496643865,-23.43927793,0.00019135,2]
[419907252,1775496646596,-276.56072207,0.00019135,2]
[419907255,1775496646611,-300.0,0.00019135,2]
[419907257,1775496646624,-300.0,0.00019135,2]
[419907260,1775496646642,-300.0,0.00019135,2]
[419907263,1775496646656,-300.0,0.00019135,2]
[419907265,1775496646670,-300.0,0.00019135,2]
[419907268,1775496646684,-300.0,0.00019135,2]
[419907270,1775496646697,-300.0,0.00019135,2]
[419907273,1775496646711,-600.0,0.00019517,2]
[419907275,1775496646726,-180.71298647,0.00020087,5]
[419907278,1775496646739,-1804.61076906,0.00020436,2]
[419907280,1775496646758,-3307.97339254,0.00020436,2]
[419907283,1775496646772,-319.716345,0.00021021,2]
[419907285,1775496646785,-151.0,0.00021233,2]
[419907288,1775496646800,-720.0,0.00021468,10]
[419907290,1775496646812,-153.0,0.00022,2]
[419907293,1775496646827,-151.0,0.00022,2]
[419907295,1775496646841,-159.0,0.00022,2]
[419907298,1775496646855,-176.0,0.00022,2]
[419907300,1775496646868,-153.0,0.00023,2]
[419907303,1775496646882,-155.0,0.00023,2]
[419907305,1775496646896,-270.83333333,0.00023,2]
[419907308,1775496646911,-176.0,0.00023,2]
[419907311,1775496646924,-227.01,0.000231,2]
[419907313,1775496646939,-1668.60838706,0.00023146,2]
[419908744,1775496700118,-151.0,0.00014795,2]
[419908745,1775496700146,-632.0,0.00014795,2]
[419908746,1775496703591,1000.0,0.00032876,120]
[419908751,1775496983262,3739.31486745,0.00023696,120]
[419908752,1775496983778,3739.31486745,0.00024,120]
[419908753,1775496984301,3739.31486745,0.00024304,120]
[419908754,1775496984803,3739.31486745,0.00024608,120]
[419908755,1775496985306,3739.31486745,0.00024913,120]
[419908756,1775496989656,1576.42642021,0.00023696,120]
[419908757,1775496990142,1576.42642021,0.00024,120]
[419908758,1775496990650,1576.42642021,0.00024304,120]
[419908759,1775496991132,1576.42642021,0.00024608,120]
[419908760,1775496992215,1576.42642021,0.00024913,120]
[419908761,1775497018399,398.36578012,0.00024779,120]
[419908762,1775497018908,398.36578012,0.00024846,120]
[419908763,1775497019383,398.36578012,0.00024913,120]
[419908764,1775497093163,5138.60627741,0.0003,120]
[419908765,1775497124713,235.89258153,0.00024187,120]
[419908766,1775497138790,571.83387429,0.00024779,120]
[419908767,1775497139342,571.83387429,0.00024846,120]
[419908768,1775497294847,883.67497676,0.00032876,120]
[419908769,1775497395520,1038.34,0.000328,120]
[419908770,1775497396764,1038.34,0.0003285,120]
[419908805,1775497658543,1685.57,0.000327,120]
[419909046,1775497783232,1000.0,0.00032876,120]
[419909048,1775497832396,-322.2452851,0.00013699,2]
[419909135,1775497838588,-677.7547149,0.00013699,2]
[419909137,1775497838598,-362.9660469,0.00013699,2]
[419909139,1775497838609,-252.0339531,0.00013699,2]
[419909141,1775497838618,-300.0,0.00013832,2]
[419909143,1775497838627,-300.0,0.00013832,2]
[419909145,1775497838637,-300.0,0.00013832,2]
[419909147,1775497838646,-300.0,0.00013832,2]
[419909149,1775497838655,-300.0,0.00013832,2]
[419909151,1775497838664,-300.0,0.00013832,2]
[419909153,1775497838673,-300.0,0.00013832,2]
[419909155,1775497838682,-300.0,0.00013832,2]
[419909157,1775497838691,-300.0,0.00013832,2]
[419909160,1775497838700,-300.0,0.00013832,2]
[419909162,1775497838708,-300.0,0.00013832,2]
[419909165,1775497838717,-300.0,0.00013832,2]
[419909167,1775497838726,-300.0,0.00013832,2]
[419909169,1775497838734,-300.0,0.00013832,2]
[419909171,1775497838744,-300.0,0.00013832,2]
[419909173,1775497838753,-600.0,0.00014108,2]
[419909175,1775497838762,-720.0,0.00015518,2]
[419909177,1775497838771,-864.0,0.0001707,2]
[419909179,1775497838780,-3739.31486745,0.00018526,30]
[419909181,1775497838789,-1000.0,0.00018777,2]
[419909183,1775497838798,-3739.31486745,0.0001883,30]
[419909185,1775497838808,-3739.31486745,0.00019134,30]
[419909187,1775497838817,-1576.42642021,0.00019134,30]
[419909189,1775497838826,-3739.31486745,0.00019438,30]
[419909191,1775497838835,-1576.42642021,0.00019438,30]
[419909194,1775497838846,-1576.42642021,0.00019742,30]
[419909195,1775497838855,-3739.31486745,0.00020046,30]
[419909197,1775497838865,-4571.25582935,0.00020251,2]
[419909199,1775497838874,-3739.31486745,0.00020351,30]
[419909201,1775497838883,-1576.42642021,0.00020351,30]
[419909203,1775497838892,-3739.31486745,0.00020655,60]
[419909205,1775497838901,-1576.42642021,0.00020655,60]
[419909207,1775497838910,-1000.0,0.00020655,2]
[419909209,1775497838919,-244.0,0.00020655,2]
[419909211,1775497838928,-3739.31486745,0.00020959,60]
[419909213,1775497838937,-1576.42642021,0.00020959,60]
[419909215,1775497838947,-3739.31486745,0.00021263,60]
[419909217,1775497838956,-1576.42642021,0.00021263,60]
[419909219,1775497838965,-151.238552,0.00021567,2]
[419909221,1775497838975,-3739.31486745,0.00021567,60]
[419909223,1775497838984,-1576.42642021,0.00021567,60]
[419909225,1775497838993,-500.0,0.00021644,2]
[419909227,1775497839002,-500.0,0.00021644,2]
[419909229,1775497839011,-500.0,0.00021644,2]
[419909231,1775497839020,-553.71955227,0.00021644,2]
[419909233,1775497839030,-4571.25582935,0.00021804,2]
[419909235,1775497839039,-3739.31486745,0.00021871,60]
[419909237,1775497839050,-1576.42642021,0.00021871,60]
[419909239,1775497839059,-151.0,0.00021918,2]
[419909242,1775497839070,-151.0,0.00021918,2]
[419909244,1775497839079,-151.0,0.00021918,2]
[419909246,1775497839088,-151.0,0.00021918,2]
[419909247,1775497839097,-151.0,0.00021918,2]
[419909249,1775497839107,-151.0,0.00021918,2]
[419909251,1775497839116,-151.0,0.00021918,2]